fUSD/lending_fUSD_20240429
["ID","MTS","AMOUNT","RATE_DAILY","PERIOD"]
[324884169,1714395042357,-500.0,0.00011253,2]
[324884170,1714395042367,-521.09326682,0.00011253,2]
[324884173,1714395042376,-500.0,0.00011253,2]
[324884176,1714395042386,-570.7,0.00011253,2]
[324884179,1714395042395,-287.06829841,0.00011253,2]
[324884181,1714395042404,-500.0,0.00011253,2]
[324884183,1714395042414,-451.45,0.00011253,2]
[324884185,1714395042429,-500.0,0.00011253,2]
[324884188,1714395042439,-500.0,0.00011253,2]
[324884190,1714395042448,-1000.0,0.00011366,2]
[324884192,1714395042459,-500.0,0.00011523,2]
[324884193,1714395042470,-500.0,0.00011523,2]
[324884194,1714395042479,-783.17,0.00011523,2]
[324884195,1714395042488,-500.0,0.00011523,2]
[324884196,1714395042499,-903.2,0.00011523,2]
[324884197,1714395042509,-500.0,0.00011523,2]
[324884198,1714395042520,-203.19,0.00011523,2]
[324884199,1714395042532,-920.64,0.00011523,2]
[324884200,1714395042545,-500.0,0.00011523,2]
[324884203,1714395042558,-4457.08,0.00011523,2]
[324884206,1714395042567,-500.0,0.00011523,2]
[324884208,1714395042577,-500.0,0.00011523,2]
[324884211,1714395042586,-500.0,0.00011524,2]
[324884212,1714395042596,-491.94224599,0.00011524,2]
[324884213,1714395042605,-500.0,0.00011524,2]
[324884215,1714395042614,-500.0,0.00011524,2]
[324884218,1714395042624,-500.0,0.00011524,2]
[324884220,1714395042633,-500.0,0.00011524,2]
[324884222,1714395042642,-500.0,0.00011524,2]
[324884223,1714395042652,-641.54,0.00011524,2]
[324884224,1714395042661,-500.0,0.00011524,2]
[324884225,1714395042671,-512.73,0.00011524,2]
[324884227,1714395042681,-500.0,0.00011524,2]
[324884228,1714395042691,-500.0,0.00011524,2]
[324884229,1714395042701,-782.28,0.00011524,2]
[324884230,1714395042710,-500.0,0.00011524,2]
[324884231,1714395042720,-797.26,0.00011524,2]
[324884232,1714395042730,-863.99,0.00011524,2]
[324884233,1714395042739,-705.54,0.00011524,2]
[324884234,1714395042748,-500.0,0.00011524,2]
[324884235,1714395042759,-500.0,0.00011524,2]
[324884236,1714395042769,-500.0,0.00011524,2]
[324884237,1714395042778,-603.04,0.00011524,2]
[324884238,1714395042787,-500.0,0.00011524,2]
[324884239,1714395042796,-500.0,0.00011524,2]
[324884240,1714395042805,-500.0,0.00011524,2]
[324884241,1714395042814,-500.0,0.00011524,2]
[324884242,1714395042824,-708.02,0.00011524,2]
[324884243,1714395042832,-1903.78,0.00011524,2]
[324884244,1714395042842,-3913.19,0.00011524,2]
[324884245,1714395042852,-500.0,0.00011524,2]
[324884246,1714395042862,-500.0,0.00011524,2]
[324884247,1714395042872,-500.0,0.00011524,2]
[324884248,1714395042881,-755.67,0.00011524,2]
[324884249,1714395042890,-707.78,0.00011524,2]
[324884250,1714395042899,-500.0,0.00011524,2]
[324884251,1714395042908,-500.0,0.00011524,2]
[324884252,1714395042917,-500.0,0.00011524,2]
[324884253,1714395042927,-293.02,0.00011524,2]
[324884254,1714395042935,-897.03,0.00011524,2]
[324884255,1714395042945,-5512.02,0.00011524,2]
[324884256,1714395042954,-595.66,0.00011524,2]
[324884257,1714395042964,-500.0,0.00011524,2]
[324884258,1714395042973,-500.0,0.00011524,2]
[324884259,1714395042982,-500.0,0.00011524,2]
[324884260,1714395042991,-1788.53,0.00011524,2]
[324884261,1714395043001,-370.24000093,0.00011525,2]
[324884262,1714395043012,-500.0,0.00011525,2]
[324884263,1714395043021,-500.0,0.00011525,2]
[324884264,1714395043030,-182.4,0.00011525,2]
[324884265,1714395043039,-500.0,0.00011525,2]
[324884266,1714395043048,-1884.09,0.00011525,2]
[324884267,1714395043058,-500.0,0.00011525,2]
[324884268,1714395043067,-500.0,0.00011525,2]
[324884269,1714395043077,-500.0,0.00011525,2]
[324884270,1714395043086,-208.25167403,0.00011525,2]
[324884271,1714395043096,-548.81,0.00011525,2]
[324884272,1714395043105,-500.0,0.00011525,2]
[324884273,1714395043114,-500.0,0.00011525,2]
[324884274,1714395043123,-528.95,0.00011525,2]
[324884275,1714395043132,-349.53,0.00011525,2]
[324884276,1714395043141,-500.0,0.00011525,2]
[324884277,1714395043151,-500.0,0.00011525,2]
[324884278,1714395043160,-500.0,0.00011525,2]
[324884279,1714395043170,-500.0,0.00011525,2]
[324884280,1714395043179,-754.57,0.00011525,2]
[324884281,1714395043188,-500.0,0.00011525,2]
[324884282,1714395043197,-500.0,0.00011525,2]
[324884283,1714395043206,-500.0,0.00011525,2]
[324884284,1714395043216,-500.0,0.00011525,2]
[324884285,1714395043225,-500.0,0.00011525,2]
[324884286,1714395043234,-657.82,0.00011525,2]
[324884287,1714395043243,-500.0,0.00011525,2]
[324884288,1714395043254,-500.0,0.00011525,2]
[324884289,1714395043263,-879.12,0.00011525,2]
[324884290,1714395043273,-4875.01,0.00011525,2]
[324884291,1714395043283,-1081.73,0.00011526,2]
[324884292,1714395043292,-855.15,0.00011526,2]
[324884294,1714395043301,-500.0,0.00011526,2]
[324884295,1714395043310,-500.0,0.00011526,2]
[324884297,1714395043319,-500.0,0.00011526,2]
[324884299,1714395043328,-493.1130009,0.00011526,2]
[324884300,1714395043338,-500.0,0.00011526,2]
[324884301,1714395043349,-500.0,0.00011526,2]
[324884302,1714395043358,-727.22,0.00011526,2]
[324884303,1714395043368,-500.0,0.00011526,2]
[324884304,1714395043377,-500.0,0.00011526,2]
[324884305,1714395043387,-500.0,0.00011526,2]
[324884306,1714395043396,-500.0,0.00011526,2]
[324884307,1714395043406,-500.0,0.00011527,2]
[324884308,1714395043416,-183.22805095,0.00011527,2]
[324884309,1714395043426,-512.98321452,0.00011527,2]
[324884310,1714395043436,-276.0695705,0.00011691,2]
[324884311,1714395043448,-324.17,0.00011693,2]
[324884312,1714395043459,-158.91685942,0.00011698,2]
[324884313,1714395043468,-171.03103542,0.000117,2]
[324884314,1714395043477,-500.0,0.000117,2]
[324884315,1714395043487,-245000.0,0.00011701,2]
[324884316,1714395043497,-500.0,0.00011797,2]
[324884317,1714395043507,-500.0,0.00011797,2]
[324884318,1714395043517,-783.17,0.00011797,2]
[324884319,1714395043527,-500.0,0.00011797,2]
[324884320,1714395043538,-903.2,0.00011797,2]
[324884321,1714395043547,-500.0,0.00011797,2]
[324884322,1714395043558,-920.64,0.00011797,2]
[324884323,1714395043567,-410.82301926,0.00011797,2]
[324884324,1714395043576,-4457.08,0.00011797,2]
[324884325,1714395043585,-500.0,0.00011797,2]
[324884326,1714395043594,-500.0,0.00011797,2]
[324884327,1714395043603,-500.0,0.00011798,2]
[324884328,1714395043613,-500.0,0.00011798,2]
[324884329,1714395043622,-641.54,0.00011798,2]
[324884330,1714395043633,-500.0,0.00011798,2]
[324884331,1714395043642,-500.0,0.00011798,2]
[324884332,1714395043652,-782.28,0.00011798,2]
[324884333,1714395043661,-500.0,0.00011798,2]
[324884334,1714395043670,-797.26,0.00011798,2]
[324884335,1714395043679,-863.99,0.00011798,2]
[324884336,1714395043689,-705.54,0.00011798,2]
[324884337,1714395043699,-500.0,0.00011798,2]
[324884338,1714395043709,-500.0,0.00011798,2]
[324884339,1714395043719,-603.04,0.00011798,2]
[324884340,1714395043728,-248.66,0.00011798,2]
[324884341,1714395043737,-500.0,0.00011798,2]
[324884342,1714395043746,-500.0,0.00011798,2]
[324884343,1714395043756,-500.0,0.00011798,2]
[324884344,1714395043766,-708.02,0.00011798,2]
[324884345,1714395043775,-1903.78,0.00011798,2]
[324884346,1714395043785,-3913.19,0.00011798,2]
[324884347,1714395043796,-500.0,0.00011798,2]
[324884348,1714395043806,-500.0,0.00011798,2]
[324884349,1714395043814,-500.0,0.00011798,2]
[324884350,1714395043823,-755.67,0.00011798,2]
[324884351,1714395043832,-707.78,0.00011798,2]
[324884352,1714395043842,-500.0,0.00011798,2]
[324884353,1714395043851,-500.0,0.00011798,2]
[324884354,1714395043863,-500.0,0.00011798,2]
[324884355,1714395043876,-897.03,0.00011798,2]
[324884356,1714395043896,-5512.02,0.00011798,2]
[324884357,1714395043913,-595.66,0.00011798,2]
[324884358,1714395043922,-471.01616096,0.00011798,2]
[324884359,1714395043931,-457.01591353,0.00011798,2]
[324884360,1714395043940,-500.0,0.00011798,2]
[324884361,1714395043949,-1788.53,0.00011798,2]
[324884362,1714395043959,-500.0,0.00011799,2]
[324884363,1714395043969,-500.0,0.00011799,2]
[324884364,1714395043978,-500.0,0.00011799,2]
[324884365,1714395043988,-1884.09,0.00011799,2]
[324884366,1714395043997,-500.0,0.00011799,2]
[324884367,1714395044008,-500.0,0.00011799,2]
[324884368,1714395044018,-500.0,0.00011799,2]
[324884369,1714395044027,-548.81,0.00011799,2]
[324884370,1714395044036,-500.0,0.00011799,2]
[324884371,1714395044045,-500.0,0.00011799,2]
[324884372,1714395044055,-528.95,0.00011799,2]
[324884373,1714395044064,-500.0,0.00011799,2]
[324884374,1714395044073,-500.0,0.00011799,2]
[324884375,1714395044082,-500.0,0.00011799,2]
[324884376,1714395044091,-500.0,0.00011799,2]
[324884377,1714395044101,-754.57,0.00011799,2]
[324884378,1714395044109,-500.0,0.00011799,2]
[324884379,1714395044119,-59.13127058,0.00011799,2]
[324884380,1714395044328,-270.99999998,0.00011799,2]
[324884381,1714395044342,-169.86872944,0.00011799,2]
[324884382,1714395044351,-500.0,0.00011799,2]
[324884383,1714395044360,-500.0,0.00011799,2]
[324884384,1714395044369,-500.0,0.00011799,2]
[324884385,1714395044378,-657.82,0.00011799,2]
[324884386,1714395044387,-360.45,0.00011799,2]
[324884387,1714395044397,-500.0,0.00011799,2]
[324884388,1714395044406,-879.12,0.00011799,2]
[324884389,1714395044419,-4875.01,0.00011799,2]
[324884390,1714395044432,-1081.73,0.000118,2]
[324884391,1714395044443,-855.15,0.000118,2]
[324884392,1714395044452,-245.85070793,0.000118,2]
[324884393,1714395044472,-977.69249947,0.00011251,2]
[324884394,1714395044484,-303.20750053,0.00011251,2]
[324884395,1714395044493,-170.13086207,0.000118,2]
[324884396,1714395044577,-507.13080378,0.00011251,2]
[324884397,1714395044586,-298.53442312,0.00011525,2]
[324884398,1714395044605,-982.36557688,0.00011525,2]
[324884399,1714395044614,-1280.9,0.00011799,2]
[324884400,1714395044623,-84.01843,0.000118,2]
[324884401,1714395044632,-500.0,0.000118,2]
[324884402,1714395044641,-500.0,0.000118,2]
[324884403,1714395044650,-500.0,0.000118,2]
[324884404,1714395044659,-500.0,0.000118,2]
[324884405,1714395044668,-727.22,0.000118,2]
[324884406,1714395044677,-500.0,0.000118,2]
[324884407,1714395044687,-500.0,0.000118,2]
[324884408,1714395044696,-500.0,0.000118,2]
[324884409,1714395044705,-500.0,0.00011818,2]
[324884410,1714395044714,-292.97,0.00011918,2]
[324884411,1714395044724,-176.03,0.00011948,2]
[324884412,1714395044904,-172.64655777,0.00011955,2]
[324884413,1714395044914,-171.03103542,0.00011955,2]
[324884414,1714395044923,-158.91685941,0.00011972,2]
[324884415,1714395044933,-172.45830815,0.00011974,2]
[324884416,1714395044942,-4273.96140303,0.00011977,2]
[324884417,1714395044954,-255.471,0.00011977,2]
[324884418,1714395044965,-5470.56759697,0.00011977,2]
[324884419,1714395044975,-276.0695705,0.0001199,2]
[324884420,1714395044985,-224.04647229,0.00011999,2]
[324884421,1714395045002,-75.4243172,0.00011999,2]
[324884422,1714395045013,-366.2073039,0.00012,2]
[324884423,1714395045024,-192.5683789,0.00012,2]
[324884424,1714395045036,-611.23327159,0.00012,2]
[324884425,1714395045065,-392.7047,0.00012,2]
[324884426,1714395045146,-6585.8,0.00012,2]
[324884427,1714395045157,-784.0,0.00012,2]
[324884428,1714395045168,-5128.81878843,0.00012,2]
[324884429,1714395045181,-83749.07759455,0.00012,2]
[324884430,1714395045262,-314.99999999,0.00012,2]
[324884431,1714395045282,-193.83289765,0.00011699,2]
[324884432,1714395045291,-925.03150197,0.00012,2]
[324884433,1714395045303,-3343.6,0.00012,2]
[324884434,1714395045314,-12547.04461993,0.00012,2]
[324884435,1714395045325,-33795.86057098,0.00012,2]
[324884436,1714395045336,-17261.4037746,0.00012,2]
[324884437,1714395045348,-1194.36532401,0.00012,2]
[324884438,1714395045359,-219721.44104545,0.00012,2]
[324884439,1714395045378,-2153.63648585,0.00012,2]
[324884440,1714395045389,-432.0,0.00012,2]
[324884442,1714395045400,-6600.4,0.00012,2]
[324884443,1714395045411,-385.60416104,0.00012,2]
[324884446,1714395045425,-1243.700005,0.00012,2]
[324884448,1714395045436,-63063.10313042,0.00012,2]
[324884450,1714395045452,-35291.22786549,0.00012,2]
[324884461,1714395045700,-620.1960599,0.00012,2]
[324884462,1714395045713,-404.48230813,0.00012,2]
[324884463,1714395045724,-1021.731,0.00012,2]
[324884464,1714395045764,-1227.0064093,0.00012,2]
[324884465,1714395045775,-3264.2630295,0.00012,2]
[324884466,1714395045787,-1649.32414159,0.00012,2]
[324884467,1714395045830,-2528.75912021,0.00012,2]
[324884468,1714395045843,-104349.67656498,0.00012,2]
[324884469,1714395045856,-252.29499656,0.00012,2]
[324884470,1714395045868,-785.95,0.00012,2]
[324884471,1714395045881,-7808.8,0.00012,2]
[324884472,1714395045893,-418.60678026,0.00012,2]
[324884473,1714395045905,-1263.0,0.00012,2]
[324884474,1714395045916,-403581.25321454,0.00012,2]
[324884475,1714395045927,-7818.63174524,0.00012,2]
[324884481,1714395264287,151.01272766,0.00012,30]
[324884489,1714395937513,-2323.11452786,8.851e-05,2]
[324884490,1714396033724,533.25146559,8.854e-05,2]
[324884491,1714396068964,-253.37,8.855e-05,2]
[324884501,1714396231778,-562.18,0.00010754,2]
[324884502,1714396231789,-600.0,0.00010754,2]
[324884503,1714396231798,-108.02375856,0.00010766,2]
[324884504,1714396231810,-3256.1,0.00010766,2]
[324884505,1714396231830,-1852.40624144,0.00010766,2]
[324884506,1714396231840,-354.48,0.00010773,2]
[324884507,1714396231849,-150.42,0.00010792,2]
[324884508,1714396231859,-150.0,0.00010959,2]
[324884509,1714396231868,-150.0,0.00010959,2]
[324884510,1714396231878,-1000.0,0.00010999,2]
[324884511,1714396231887,-150.0,0.00010999,2]
[324884512,1714396231897,-679.1931374,0.00011,2]
[324884513,1714396231906,-8781.4911502,0.00011,2]
[324884514,1714396231919,-429.8742519,0.00011,2]
[324884515,1714396231998,-1071.32430337,0.00011,2]
[324884516,1714396232010,-829.59060237,0.00011,2]
[324884517,1714396232054,-1153.90392012,0.00011,2]
[324884518,1714396232065,-1262.30104,0.00011,2]
[324884519,1714396232111,-857.74670121,0.00011,2]
[324884521,1714396232122,-10111.23617097,0.00011,2]
[324884523,1714396232134,-6105.05229622,0.00011,2]
[324884653,1714396237871,-2267.56707699,0.00011,2]
[324884654,1714396237928,-301.52429435,0.00011,2]
[324884655,1714396237940,-11173.82495278,0.00011,2]
[324884656,1714396237950,-7056.96669223,0.0001108,2]
[324884657,1714396237959,-499.99,0.00011119,2]
[324884658,1714396237968,-253.37,0.00011119,2]
[324884659,1714396237977,-150.0,0.00011233,2]
[324884660,1714396237987,-500.0,0.00011249,2]
[324884661,1714396237997,-500.0,0.00011249,2]
[324884662,1714396238006,-500.0,0.00011249,2]
[324884663,1714396238015,-509.03,0.00011249,2]
[324884664,1714396238025,-500.0,0.00011249,2]
[324884665,1714396238034,-500.0,0.00011249,2]
[324884666,1714396238043,-500.0,0.00011249,2]
[324884667,1714396238052,-500.0,0.00011249,2]
[324884668,1714396238063,-500.0,0.00011249,2]
[324884669,1714396238072,-500.0,0.00011249,2]
[324884670,1714396238082,-483.58694588,0.00011249,2]
[324884671,1714396238092,-490.97293598,0.00011249,2]
[324884672,1714396238101,-507.13,0.00011249,2]
[324884673,1714396238111,-500.0,0.00011249,2]
[324884674,1714396238120,-383.22349632,0.00011249,2]
[324884675,1714396238129,-500.0,0.00011249,2]
[324884676,1714396238139,-500.0,0.00011249,2]
[324884677,1714396238148,-500.0,0.00011249,2]
[324884679,1714396238157,-500.0,0.00011249,2]
[324884680,1714396238167,-500.0,0.00011249,2]
[324884681,1714396238177,-500.0,0.00011249,2]
[324884682,1714396238186,-500.0,0.00011249,2]
[324884683,1714396238196,-582.90415652,0.00011249,2]
[324884684,1714396238206,-500.0,0.00011249,2]
[324884685,1714396238215,-500.0,0.00011249,2]
[324884686,1714396238224,-500.0,0.00011249,2]
[324884687,1714396238234,-500.0,0.0001125,2]
[324884688,1714396238243,-500.0,0.0001125,2]
[324884689,1714396238252,-500.0,0.0001125,2]
[324884691,1714396238262,-500.0,0.0001125,2]
[324884693,1714396238271,-594.64944782,0.0001125,2]
[324884695,1714396238280,-500.0,0.0001125,2]
[324884697,1714396238290,-500.0,0.0001125,2]
[324884699,1714396238298,-733.45,0.0001125,2]
[324884701,1714396238308,-500.0,0.0001125,2]
[324884702,1714396238317,-500.0,0.0001125,2]
[324884704,1714396238326,-531.49,0.0001125,2]
[324884707,1714396238336,-264.06824218,0.0001125,2]
[324884708,1714396238345,-500.0,0.0001125,2]
[324884712,1714396238355,-500.0,0.0001125,2]
[324884714,1714396238364,-500.0,0.0001125,2]
[324884717,1714396238374,-500.0,0.0001125,2]
[324884721,1714396238383,-500.0,0.0001125,2]
[324884724,1714396238392,-500.0,0.0001125,2]
[324884725,1714396238402,-500.0,0.0001125,2]
[324884727,1714396238411,-209.11600586,0.0001125,2]
[324884730,1714396238422,-500.0,0.0001125,2]
[324884731,1714396238432,-500.0,0.0001125,2]
[324884734,1714396238442,-500.0,0.0001125,2]
[324884735,1714396238452,-500.0,0.0001125,2]
[324884737,1714396238461,-500.0,0.0001125,2]
[324884739,1714396238470,-500.0,0.0001125,2]
[324884741,1714396238479,-500.0,0.0001125,2]
[324884743,1714396238489,-500.0,0.0001125,2]
[324884745,1714396238498,-500.0,0.0001125,2]
[324884747,1714396238507,-500.0,0.0001125,2]
[324884749,1714396238517,-500.0,0.0001125,2]
[324884752,1714396238527,-500.0,0.0001125,2]
[324884754,1714396238536,-500.0,0.0001125,2]
[324884756,1714396238546,-154.79691114,0.0001125,2]
[324884757,1714396238556,-500.0,0.0001125,2]
[324884759,1714396238566,-480.85361685,0.0001125,2]
[324884761,1714396238575,-626.85,0.0001125,2]
[324884764,1714396238585,-500.0,0.0001125,2]
[324884765,1714396238595,-500.0,0.0001125,2]
[324884767,1714396238604,-500.0,0.0001125,2]
[324884769,1714396238614,-598.81346895,0.0001125,2]
[324884772,1714396238623,-500.0,0.0001125,2]
[324884774,1714396238632,-500.0,0.0001125,2]
[324884775,1714396238641,-509.70872684,0.0001125,2]
[324884777,1714396238650,-500.0,0.0001125,2]
[324884779,1714396238659,-500.0,0.0001125,2]
[324884781,1714396238670,-500.0,0.0001125,2]
[324884783,1714396238679,-500.0,0.0001125,2]
[324884786,1714396238689,-500.0,0.0001125,2]
[324884788,1714396238698,-500.0,0.0001125,2]
[324884790,1714396238707,-500.0,0.0001125,2]
[324884792,1714396238716,-500.0,0.0001125,2]
[324884793,1714396238726,-500.0,0.0001125,2]
[324884794,1714396238735,-500.0,0.0001125,2]
[324884795,1714396238744,-500.0,0.0001125,2]
[324884796,1714396238755,-500.0,0.00011251,2]
[324884797,1714396238764,-500.0,0.00011251,2]
[324884798,1714396238774,-500.0,0.00011251,2]
[324884799,1714396238784,-500.0,0.00011251,2]
[324884800,1714396238793,-500.0,0.00011523,2]
[324884801,1714396238803,-733.45,0.00011524,2]
[324884802,1714396238813,-500.0,0.00011524,2]
[324884804,1714396238823,-591.51143379,0.00011524,2]
[324884806,1714396238832,-626.85,0.00011524,2]
[324884808,1714396238841,-500.0,0.00011524,2]
[324884810,1714396238851,-500.0,0.00011524,2]
[324884812,1714396238863,-988.9306,0.00011697,2]
[324884814,1714396238872,-31325.3482,0.000117,2]
[324884816,1714396238881,-500.0,0.00011797,2]
[324884818,1714396238890,-733.45,0.00011798,2]
[324884820,1714396238900,-500.0,0.00011798,2]
[324884822,1714396238909,-626.85,0.00011798,2]
[324884824,1714396238919,-500.0,0.00011798,2]
[324884827,1714396238929,-500.0,0.00011798,2]
[324884828,1714396238940,-27932.4814,0.000118,2]
[324884830,1714396238950,-1000.0,0.000118,2]
[324884832,1714396238960,-3000.0,0.0001188,2]
[324884835,1714396238969,-500.0,0.00011899,2]
[324884837,1714396238979,-173.81351953,0.00011899,2]
[324884839,1714396238988,-500.0,0.00011899,2]
[324884841,1714396238997,-500.0,0.00011899,2]
[324884843,1714396239007,-500.0,0.00011899,2]
[324884845,1714396239016,-500.0,0.00011899,2]
[324884847,1714396239026,-556.3,0.00011899,2]
[324884849,1714396239035,-500.0,0.00011899,2]
[324884851,1714396239044,-500.0,0.00011899,2]
[324884852,1714396239054,-500.0,0.00011899,2]
[324884854,1714396239063,-3911.86,0.00011899,2]
[324884857,1714396239072,-500.0,0.00011899,2]
[324884859,1714396239082,-500.0,0.00011899,2]
[324884861,1714396239091,-500.0,0.00011899,2]
[324884863,1714396239100,-500.0,0.00011899,2]
[324884865,1714396239109,-500.0,0.00011899,2]
[324884866,1714396239118,-500.0,0.00011899,2]
[324884868,1714396239127,-504.25,0.00011899,2]
[324884870,1714396239136,-500.0,0.00011899,2]
[324884873,1714396239146,-583.99,0.00011899,2]
[324884875,1714396239157,-15925.2589,0.000119,2]
[324884876,1714396239166,-220.73595913,0.000119,2]
[324884878,1714396239176,-4647.152092,0.0001197,2]
[324884881,1714396239186,-158.3814673,0.0001199,2]
[324884883,1714396239196,-265.19236492,0.00011996,2]
[324884885,1714396239205,-500.0,0.00011996,2]
[324884887,1714396239214,-619.52,0.00011996,2]
[324884889,1714396239223,-760.63,0.00011996,2]
[324884891,1714396239232,-500.0,0.00011996,2]
[324884893,1714396239241,-278.05326884,0.00011996,2]
[324884894,1714396239250,-500.0,0.00011996,2]
[324884896,1714396239259,-1084.72,0.00011996,2]
[324884899,1714396239270,-500.0,0.00011996,2]
[324884901,1714396239279,-500.0,0.00011996,2]
[324884903,1714396239290,-769.09,0.00011996,2]
[324884905,1714396239299,-500.0,0.00011996,2]
[324884907,1714396239309,-358.21377545,0.00011996,2]
[324884909,1714396239319,-664.21,0.00011996,2]
[324884911,1714396239328,-900.96,0.00011996,2]
[324884913,1714396239337,-500.0,0.00011996,2]
[324884915,1714396239346,-500.0,0.00011996,2]
[324884917,1714396239355,-500.0,0.00011996,2]
[324884919,1714396239365,-500.0,0.00011996,2]
[324884921,1714396239374,-4280.41,0.00011996,2]
[324884923,1714396239383,-500.0,0.00011996,2]
[324884925,1714396239392,-500.0,0.00011996,2]
[324884927,1714396239402,-500.0,0.00011996,2]
[324884929,1714396239411,-784.9,0.00011996,2]
[324884931,1714396239422,-255.70454738,0.00011996,2]
[324884933,1714396239431,-500.0,0.00011996,2]
[324884935,1714396239440,-500.0,0.00011996,2]
[324884937,1714396239450,-500.0,0.00011996,2]
[324884939,1714396239459,-1597.13,0.00011996,2]
[324884941,1714396239468,-500.0,0.00011996,2]
[324884943,1714396239478,-500.0,0.00011996,2]
[324884945,1714396239487,-500.0,0.00011996,2]
[324884947,1714396239495,-500.0,0.00011996,2]
[324884949,1714396239505,-500.0,0.00011996,2]
[324884951,1714396239514,-500.0,0.00011996,2]
[324884953,1714396239523,-561.35,0.00011997,2]
[324884955,1714396239532,-500.0,0.00011997,2]
[324884957,1714396239542,-500.0,0.00011997,2]
[324884959,1714396239551,-500.0,0.00011997,2]
[324884961,1714396239560,-500.0,0.00011997,2]
[324884963,1714396239569,-723.85,0.00011997,2]
[324884965,1714396239578,-500.0,0.00011997,2]
[324884967,1714396239587,-1228.51,0.00011997,2]
[324884970,1714396239596,-653.3,0.00011997,2]
[324884973,1714396239605,-500.0,0.00011997,2]
[324884976,1714396239614,-500.0,0.00011997,2]
[324884979,1714396239623,-1793.68,0.00011997,2]
[324884982,1714396239631,-500.0,0.00011997,2]
[324884985,1714396239640,-500.0,0.00011997,2]
[324884988,1714396239649,-517.23,0.00011997,2]
[324884991,1714396239659,-500.0,0.00011997,2]
[324884993,1714396239669,-5005.3,0.00011997,2]
[324884996,1714396239678,-321.17612737,0.00011998,2]
[324885000,1714396239688,-189.09138709,0.00011998,2]
[324885003,1714396239698,-500.0,0.00011998,2]
[324885006,1714396239708,-500.0,0.00011998,2]
[324885008,1714396239717,-500.0,0.00011998,2]
[324885010,1714396239726,-500.0,0.00011998,2]
[324885012,1714396239736,-500.0,0.00011998,2]
[324885013,1714396239745,-500.0,0.00011998,2]
[324885014,1714396239754,-500.0,0.00011998,2]
[324885023,1714396239763,-500.0,0.00011998,2]
[324885025,1714396239959,-500.0,0.00011998,2]
[324885027,1714396239968,-500.0,0.00011998,2]
[324885029,1714396239979,-595.71094772,0.00011998,2]
[324885031,1714396239990,-500.0,0.00011998,2]
[324885033,1714396239999,-500.0,0.00011998,2]
[324885036,1714396240009,-500.0,0.00011998,2]
[324885038,1714396240018,-160.55713062,0.00011998,2]
[324885040,1714396240037,-339.44286938,0.00011998,2]
[324885043,1714396240046,-500.0,0.00011998,2]
[324885044,1714396240055,-500.0,0.00011998,2]
[324885047,1714396240065,-223.18906762,0.00011998,2]
[324885049,1714396240077,-276.81093238,0.00011998,2]
[324885051,1714396240086,-247.70583989,0.00011998,2]
[324885053,1714396240097,-252.29416011,0.00011998,2]
[324885055,1714396240107,-500.0,0.00011998,2]
[324885057,1714396240116,-500.0,0.00011998,2]